bitfinex-derivatives/quotes_ETHF0:USTF0_20250130
["timestamp","ask_amount","ask_price","bid_price","bid_amount"]
[1738261039673,0.00457861,3271.7,3271.6,4.81808]
[1738261045271,0.61584861,3271.7,3271.6,4.81808]
[1738261045576,0.61584861,3271.7,3271.6,0.4828]
[1738261046975,0.61584861,3271.7,3271.6,1.09408]
[1738261047178,0.00457861,3271.7,3271.6,1.09408]
[1738261047671,0.00457861,3271.7,3271.6,4.30188]
[1738261052586,0.61115,3272.3,3271.6,3.6906]
[1738261052879,0.61115,3272.3,3272.2,0.61117]
[1738261058187,0.61114,3272.5,3272.4,0.61112]
[1738261058690,0.00457861,3272.6,3272.1,5.21796]
[1738261058881,0.61568861,3272.6,3272.5,0.61112]
[1738261059383,0.00457861,3272.6,3272.5,0.61112]
[1738261061682,0.61567861,3272.6,3272.5,0.61112]
[1738261064192,0.00457861,3272.6,3272.5,0.61112]
[1738261064490,0.00457861,3272.6,3272.5,3.81892]
[1738261066582,0.00457861,3272.6,3272.5,0.61112]
[1738261067692,0.49747861,3272.6,3272.2,0.5181]
[1738261067896,0.61115,3272.4,3272.3,0.61113]
[1738261069088,0.61117,3272.2,3272.1,3.2078]
[1738261069394,0.61128,3271.7,3271.6,0.61127]
[1738261070088,0.5088,3272.0,3271.5,3.2078]
[1738261070289,0.6113,3271.5,3271.4,1.62801]
[1738261072290,0.61129,3271.6,3271.5,0.61128]
[1738261075199,0.61127,3271.8,3271.7,0.61125]
[1738261075899,0.61124,3271.9,3271.8,0.61123]
[1738261076596,0.61122,3272.0,3271.9,0.6112]
[1738261076788,0.61119,3272.1,3272.0,0.61119]
[1738261076990,0.00457861,3272.6,3272.0,1.52803]
[1738261077192,0.00457861,3272.6,3272.5,3.81892]
[1738261080698,0.00457861,3272.6,3272.5,4.30482]
[1738261084602,0.61567861,3272.6,3272.5,3.81892]
[1738261084804,0.61567861,3272.6,3272.4,2.59801214]
[1738261084805,0.61115,3272.4,3272.3,0.61113]
[1738261085104,0.6085209,3272.4,3272.3,0.61113]
[1738261085599,0.61568861,3272.6,3272.4,0.61114]
[1738261085807,0.00457861,3272.6,3272.5,0.61112]
[1738261086601,0.61567861,3272.6,3272.5,0.61112]
[1738261086903,0.00457861,3272.6,3272.5,0.61112]
[1738261088309,0.00457861,3272.6,3272.5,3.81892]
[1738261089108,0.61094,3273.5,3273.4,0.61095]
[1738261089405,4.1892,3273.9,3273.2,5.80581214]
[1738261089705,0.61093,3273.6,3273.5,0.61092]
[1738261090097,4.1892,3273.9,3273.3,1.0503]
[1738261090098,4.19377861,3273.9,3273.3,1.0503]
[1738261090298,0.61094,3273.5,3273.4,0.61094]
[1738261090602,0.61092,3273.6,3273.5,0.61092]
[1738261091597,4.19377861,3273.9,3273.3,1.0503]
[1738261091792,4.19377861,3273.9,3273.8,3.20888214]
[1738261091997,0.00457861,3273.9,3273.8,3.20888214]
[1738261092198,3.2078,3274.8,3274.1,1.52701]
[1738261092399,3.81849,3274.8,3274.3,2.59801214]
[1738261092606,0.61071,3274.7,3274.6,0.61072]
[1738261093105,3.2078,3274.8,3274.3,2.59801214]
[1738261093302,0.61076,3274.5,3274.3,2.59801214]
[1738261093502,0.61076,3274.5,3274.4,0.61076]
[1738261094205,0.61076,3274.4,3274.3,3.20878214]
[1738261095099,0.61082,3274.1,3274.0,2.59801214]
[1738261095301,0.61087,3273.8,3273.7,3.20889214]
[1738261095502,0.61087,3273.8,3273.7,2.59801214]
[1738261095708,4.2065,3274.0,3273.4,2.59801214]
[1738261096002,0.61093,3273.5,3273.4,2.59801214]
[1738261099206,0.61093,3273.5,3273.4,3.20896214]
[1738261100310,0.61093,3273.6,3273.5,0.61092]
[1738261100505,0.61093,3273.5,3273.4,3.20895214]
[1738261101107,0.61093,3273.5,3273.4,3.20896214]
[1738261101310,4.2065,3274.0,3273.4,2.59801214]
[1738261101610,0.61088,3273.8,3273.6,0.61089]
[1738261101818,0.61093,3273.5,3273.4,3.20895214]
[1738261102213,0.61093,3273.5,3273.4,2.59801214]
[1738261103108,0.61093,3273.5,3273.4,3.20896214]
[1738261104207,4.2065,3274.0,3273.4,2.59801214]
[1738261104409,4.2065,3274.0,3273.9,0.61086]
[1738261104410,3.2078,3274.0,3273.9,0.61086]
[1738261104611,0.6108,3274.3,3273.8,0.61087]
[1738261104805,0.6108,3274.3,3274.2,2.59801214]
[1738261105007,0.6108,3274.3,3274.2,3.20881214]
[1738261105207,3.81857,3274.4,3274.3,0.61078]
[1738261105402,3.2078,3275.2,3274.2,2.59801214]
[1738261105608,3.2078,3275.2,3274.9,3.20868214]
[1738261105609,0.61064,3275.1,3274.9,3.20868214]
[1738261105803,3.2078,3275.2,3274.9,3.20868214]
[1738261107307,0.5293,3275.9,3274.9,3.20868214]
[1738261107507,0.61055,3275.6,3274.9,3.20868214]
[1738261107708,0.5293,3275.9,3274.9,3.20868214]
[1738261107908,0.61061,3275.3,3274.9,0.61067]
[1738261108105,0.61055,3275.6,3274.9,0.61067]
[1738261108611,0.5293,3275.9,3275.6,0.61053]
[1738261108612,0.61054,3275.7,3275.6,0.61053]
[1738261109018,0.61054,3275.6,3275.5,3.20856214]
[1738261109616,0.61054,3275.6,3275.5,2.59801214]
[1738261109916,0.61059,3275.3,3275.2,2.60259075]
[1738261110415,0.61058,3275.4,3275.3,0.61058]
[1738261110610,0.61058,3275.4,3275.3,0.61059]
[1738261110814,3.2078,3275.7,3275.2,5.81039075]
[1738261111215,0.61059,3275.4,3275.3,0.61059]
[1738261115014,0.61059,3275.3,3275.2,6.42098075]
[1738261115218,0.61059,3275.3,3275.2,3.21237861]
[1738261115412,0.61059,3275.3,3275.2,0.00457861]
[1738261115917,3.81839,3275.3,3275.2,0.00457861]
[1738261116122,0.61074,3274.5,3274.4,3.81855]
[1738261116814,0.61073,3274.6,3274.5,0.61073]
[1738261117622,0.61074,3274.5,3274.4,0.61075]
[1738261118014,4.2289,3274.9,3274.3,2.59801214]
[1738261118320,0.61074,3274.6,3274.5,0.61073]
[1738261119221,0.61076,3274.5,3274.4,0.61075]
[1738261119919,4.2289,3274.9,3274.3,2.59801214]
[1738261120119,3.7417,3274.9,3274.3,2.59801214]
[1738261120326,3.2078,3274.9,3274.3,2.59801214]
[1738261120522,0.6107,3274.8,3274.7,0.61069]
[1738261120824,3.81848,3274.9,3274.8,0.61069]
[1738261121011,3.81848,3274.9,3274.8,0.42799342]
[1738261121622,3.2078,3274.9,3274.3,4.12494214]
[1738261121824,3.81848,3274.9,3274.8,0.61069]
[1738261122025,3.2078,3274.9,3274.8,0.61069]
[1738261122324,3.7161,3275.3,3274.6,2.59801214]
[1738261122726,3.7161,3275.3,3274.8,0.61067]
[1738261122926,0.61061,3275.2,3274.7,1.12839]
[1738261123225,0.61068,3274.9,3274.8,0.61068]
[1738261123826,0.61069,3274.8,3274.7,1.12839]
[1738261126430,0.61067,3275.0,3274.9,0.61067]
[1738261126821,0.61062,3275.2,3275.1,0.61061]
[1738261127020,3.2078,3275.3,3275.2,0.61061]
[1738261127227,3.2078,3275.3,3275.2,3.20862214]
[1738261127427,3.81839,3275.3,3275.2,3.20862214]
[1738261128028,3.2078,3275.3,3275.2,3.20862214]
[1738261128422,3.81839,3275.3,3275.2,3.20862214]
[1738261128929,0.61071,3274.7,3274.2,3.21237861]
[1738261129227,0.61078,3274.3,3274.2,0.00457861]
[1738261130622,0.61078,3274.3,3274.2,0.00322998]
[1738261132223,0.61075,3274.5,3274.4,0.61076]
[1738261132424,0.61076,3274.5,3274.3,1.11337]
[1738261132631,0.61076,3274.5,3274.4,0.61076]
[1738261133125,3.81853,3274.6,3274.5,0.61074]
[1738261133333,3.81853,3274.6,3274.5,3.20875214]
[1738261133531,3.81853,3274.6,3274.5,2.59801214]
[1738261134327,3.2078,3275.0,3274.5,2.59801214]
[1738261134528,3.2078,3275.0,3274.9,0.61066]
[1738261134529,0.61067,3275.0,3274.9,0.61066]
[1738261134733,3.2078,3275.4,3274.8,2.59801214]
[1738261134931,0.61066,3275.0,3274.9,1.09766]
[1738261137151,3.2078,3275.4,3274.9,0.487]
[1738261137327,3.2078,3275.4,3275.0,0.61064]
[1738261137328,0.61065,3275.1,3275.0,0.61064]
[1738261137529,0.61065,3275.0,3274.9,1.09766]
[1738261139031,0.61065,3275.0,3274.4,2.05049]
[1738261139032,3.2078,3275.0,3274.4,0.5236]
[1738261139239,0.61074,3274.5,3274.4,0.5236]
[1738261140330,3.2078,3274.6,3274.2,0.00322998]
[1738261140524,0.61078,3274.3,3274.2,0.0022788]
[1738261140831,1.52696,3274.3,3273.0,3.20902214]
[1738261141029,0.611,3273.1,3273.0,3.20902214]
[1738261141337,0.61098,3273.3,3273.2,0.61098]
[1738261141831,0.61096,3273.4,3273.3,0.61095]
[1738261142031,3.21237861,3273.6,3273.3,2.59801214]
[1738261142032,0.00457861,3273.6,3273.3,2.59801214]
[1738261142233,0.00457861,3273.6,3273.5,0.61093]
[1738261142438,0.61548861,3273.6,3273.5,0.61093]
[1738261142930,0.61093,3273.5,3273.4,0.5352]
[1738261143538,0.61549861,3273.6,3273.4,0.5352]
[1738261143727,0.00457861,3273.6,3273.4,0.5352]
[1738261143929,0.61093,3273.5,3273.4,1.14614]
[1738261144436,0.61093,3273.5,3273.4,0.5352]
[1738261144631,0.00457861,3273.6,3273.3,3.76572552]
[1738261144835,0.61095,3273.4,3273.3,3.15476552]
[1738261145238,0.00457861,3273.6,3273.2,3.81878]
[1738261145439,0.61097,3273.3,3273.2,3.2078]
[1738261145640,0.00457861,3273.6,3273.2,3.2078]
[1738261145840,0.61549861,3273.6,3273.5,0.61093]
[1738261146541,0.00457861,3273.6,3273.5,0.61093]
[1738261149044,0.61079,3274.4,3274.3,0.61077]
[1738261149241,1.52681,3274.7,3274.0,3.15476552]
[1738261149440,0.61082,3274.1,3274.0,3.76558552]
[1738261149842,0.61081,3274.2,3274.1,0.6108]
[1738261150443,0.00457861,3274.4,3274.0,3.15476552]
[1738261150742,0.61082,3274.1,3274.0,3.15476552]
[1738261151045,0.61089,3273.7,3273.6,3.15476552]
[1738261151245,0.61093,3273.5,3273.4,0.5039]
[1738261151746,3.2078,3273.7,3273.2,3.15476552]
[1738261152238,0.61097,3273.3,3273.2,1.14538]
[1738261152445,0.61097,3273.3,3273.2,0.5344]
[1738261153143,0.61097,3273.3,3273.2,1.14539]
[1738261153539,0.61097,3273.3,3273.2,0.5344]
[1738261154245,3.2078,3274.1,3273.2,3.68916552]
[1738261154431,0.61092,3273.6,3273.5,0.61092]
[1738261156047,0.61089,3273.8,3273.7,0.61088]
[1738261157546,3.2078,3274.1,3273.6,3.15476552]
[1738261157740,3.81864,3274.1,3274.0,0.61084]
[1738261158043,0.61085,3274.0,3273.9,0.61085]
[1738261158943,3.2078,3274.1,3273.8,0.5094]
[1738261159141,3.2078,3274.1,3274.0,0.61084]
[1738261159446,0.00457861,3274.4,3274.3,0.61078]
[1738261159740,0.00457861,3274.4,3274.3,3.81858]
[1738261162648,0.00457861,3274.4,3274.3,6.42001998]
[1738261171154,0.61533861,3274.4,3274.3,3.2078]
[1738261171355,0.61082,3274.2,3274.1,0.6108]
[1738261172757,0.61079,3274.3,3274.2,0.6108]
[1738261173050,0.00457861,3274.4,3274.0,2.60143998]
[1738261173257,0.61082,3274.1,3274.0,2.60143998]
[1738261174056,0.00457861,3274.4,3273.8,0.5094]
[1738261174254,0.61087,3273.8,3273.7,3.21232998]
[1738261175157,0.61087,3273.8,3273.7,2.60143998]
[1738261175359,0.61093,3273.5,3273.4,2.60143998]
[1738261175659,0.61093,3273.5,3273.4,3.21238998]
[1738261175858,1.52715,3273.9,3273.8,0.61086]
[1738261175859,0.61088,3273.9,3273.8,0.61086]
[1738261176064,0.61088,3273.9,3273.8,3.21229998]
[1738261176461,0.9859,3274.3,3273.8,2.60143998]
[1738261176660,1.0948,3274.3,3274.2,0.6108]
[1738261180057,0.6108,3274.2,3274.1,2.60143998]
[1738261180971,0.6108,3274.2,3274.1,3.21225998]
[1738261181469,4.32043,3274.6,3274.3,0.61078]
[1738261181665,0.61074,3274.5,3274.3,0.61078]
[1738261182065,2.0195,3274.9,3274.3,1.13208]
[1738261182266,0.61075,3274.5,3274.3,1.13208]
[1738261183269,0.6107,3274.8,3274.3,1.13208]
[1738261184473,0.61073,3274.6,3274.3,1.13208]
[1738261184768,0.61071,3274.7,3274.3,1.13208]
[1738261185665,0.61533861,3274.4,3274.3,1.13208]
[1738261185872,0.00457861,3274.4,3274.1,2.60143998]
[1738261186168,0.61087,3273.9,3273.8,2.60143998]
[1738261186762,3.2078,3274.2,3273.2,2.60143998]
[1738261186968,3.81877,3273.3,3273.2,2.60143998]
[1738261187265,0.61102,3273.0,3272.9,3.21704859]
[1738261187468,3.2078,3273.3,3272.9,2.60601859]
[1738261187661,0.61101,3273.1,3273.0,0.61101]
[1738261191169,0.61102,3273.0,3272.9,0.00457861]
[1738261191575,0.61102,3273.0,3272.9,0.00322915]
[1738261192173,0.61102,3273.0,3272.9,0.00241233]
[1738261197572,0.61102,3273.0,3272.9,0.61345233]
[1738261198173,0.61102,3273.0,3272.9,0.00241233]
[1738261198576,0.61102,3273.0,3272.9,0.61345233]
[1738261198774,0.61102,3273.0,3272.9,0.00241233]
[1738261199679,0.61102,3273.0,3272.9,0.61345233]
[1738261200280,0.61102,3273.0,3272.9,0.00241233]
[1738261201671,3.55579,3273.2,3272.0,1.65819]
[1738261201968,0.61119,3272.1,3272.0,1.047]
[1738261202165,0.61119,3272.1,3272.0,0.5238]
[1738261202367,0.61128,3271.7,3271.6,0.61127]
[1738261202580,3.2078,3272.0,3271.5,0.5232]
[1738261202782,0.61117,3272.3,3272.2,0.61116]
[1738261203079,0.61578861,3272.1,3272.0,0.6112]
[1738261203284,0.00457861,3272.1,3271.9,3.15571208]
[1738261203472,0.00457861,3272.1,3271.5,3.67891208]
[1738261203473,0.61128,3271.6,3271.5,3.67891208]
[1738261203673,0.61128,3271.6,3271.5,3.15571208]
[1738261204380,3.2078,3272.0,3271.5,3.15571208]
[1738261204581,0.61577861,3272.1,3272.0,0.61121]
[1738261204884,0.00457861,3272.1,3271.9,1.0366]
[1738261205077,0.61121,3272.0,3271.9,1.64782]
[1738261205772,0.61577861,3272.1,3272.0,0.61121]
[1738261206079,0.61577861,3272.1,3271.8,3.76695208]
[1738261206080,0.61123,3271.9,3271.8,3.76695208]
[1738261206279,0.00457861,3272.1,3271.8,3.15571208]
[1738261206686,0.61577861,3272.1,3272.0,0.61121]
[1738261207489,0.00457861,3272.1,3271.8,3.15571208]
[1738261207787,0.61123,3271.9,3271.8,3.15571208]
[1738261208284,0.00457861,3272.1,3271.8,3.15571208]
[1738261208481,0.00457861,3272.1,3272.0,0.61121]
[1738261209181,0.61109,3272.7,3272.6,0.61108]
[1738261210689,3.81886,3272.8,3272.7,0.61108]
[1738261210879,3.2078,3272.8,3272.7,0.61108]
[1738261211279,3.81886,3272.8,3272.7,0.61108]
[1738261211681,0.61112,3272.5,3272.4,4.26573208]
[1738261212291,3.2078,3272.8,3272.4,3.65461208]
[1738261212481,3.81887,3272.8,3272.7,0.61108]
[1738261213081,3.81887,3272.8,3272.4,3.15571208]
[1738261213082,3.2078,3272.8,3272.4,3.15571208]
[1738261213282,0.61112,3272.5,3272.4,3.76684208]
[1738261214891,3.2078,3272.8,3272.4,3.15571208]
[1738261215082,0.61111,3272.6,3272.5,0.61109]
[1738261215784,0.61111,3272.6,3272.5,2.14889]
[1738261216287,3.2078,3272.8,3272.7,0.61108]
[1738261216877,3.81886,3272.8,3272.7,3.21544195]
[1738261217082,0.61106,3272.8,3272.7,3.21544195]
[1738261217486,0.00457861,3273.0,3272.7,2.60436195]
[1738261217683,0.00457861,3273.0,3272.9,0.61104]
[1738261218290,3.2078,3273.9,3272.7,5.81216195]
[1738261218488,0.61091,3273.7,3273.6,3.21525195]
[1738261218786,0.61091,3273.7,3273.6,2.60436195]
[1738261219089,0.61091,3273.7,3273.6,3.21527195]
[1738261220286,0.61095,3273.4,3273.3,2.60894056]
[1738261220483,0.61095,3273.4,3273.3,0.00457861]
[1738261220790,0.61095,3273.4,3272.2,0.5071]
[1738261220791,0.61115,3272.4,3272.3,0.61114]
[1738261220991,0.61113,3272.5,3272.4,0.61112]
[1738261221384,0.61114,3272.4,3272.3,1.11154]
[1738261222084,1.52763,3272.9,3272.3,0.5004]
[1738261222284,0.61112,3272.6,3272.5,0.6111]
[1738261223390,1.52763,3272.9,3272.4,0.61113]
[1738261223391,0.61114,3272.5,3272.4,0.61113]
[1738261224484,3.2078,3273.0,3272.1,3.15723929]
[1738261224689,0.61119,3272.1,3272.0,0.00457861]
[1738261224892,3.81899,3272.1,3272.0,0.00457861]
[1738261225392,0.61119,3272.1,3272.0,0.61578861]
[1738261225591,4.2486,3272.5,3272.0,0.00457861]
[1738261225889,0.61117,3272.2,3272.1,3.15723929]
[1738261226495,0.61117,3272.2,3272.1,3.76842929]
[1738261227099,0.61117,3272.2,3272.1,3.15723929]
[1738261227498,0.61117,3272.2,3272.1,3.76842929]
[1738261229697,0.61117,3272.3,3272.2,0.61116]
[1738261232795,3.2078,3272.5,3272.1,3.15723929]
[1738261232994,0.61117,3272.2,3272.1,3.15723929]
[1738261233192,0.61119,3272.1,3272.0,0.61576861]
[1738261233695,0.61119,3272.1,3272.0,0.00457861]
[1738261234101,3.81899,3272.1,3272.0,0.00457861]
[1738261235297,4.80299,3272.1,3272.0,0.00457861]
[1738261235595,0.61132,3271.4,3271.3,3.15723929]
[1738261235799,0.61132,3271.4,3271.3,3.76857929]
[1738261237106,0.61132,3271.4,3271.3,3.15723929]
[1738261237396,0.5174,3271.6,3271.2,0.518]
[1738261237595,0.61134,3271.4,3271.3,0.61133]
[1738261238003,0.5174,3271.6,3271.2,0.518]
[1738261238203,0.61132,3271.5,3271.4,0.6113]
[1738261238405,0.5174,3271.6,3271.2,0.518]
[1738261238700,0.61134,3271.3,3271.2,1.12935]
[1738261238902,2.04564,3271.6,3271.0,3.21237861]
[1738261239100,0.61136,3271.2,3271.1,1.12327]
[1738261240400,0.5174,3271.6,3271.1,0.5119]
[1738261240611,3.21237861,3271.7,3271.3,3.15723929]
[1738261241099,0.61131,3271.6,3271.5,0.61129]
[1738261241307,0.00457861,3271.7,3271.6,0.61128]
[1738261241500,0.5004,3272.6,3271.6,0.5186]
[1738261241705,0.5004,3272.6,3272.1,0.61118]
[1738261241706,0.61119,3272.2,3272.1,0.61118]
[1738261242300,0.61119,3272.2,3272.0,3.15723929]
[1738261242301,0.5004,3272.6,3272.0,3.15723929]
[1738261242495,1.5278,3272.5,3272.0,3.15723929]
[1738261242711,0.61119,3272.1,3272.0,3.76843929]
[1738261243099,0.50497861,3272.6,3272.0,3.15723929]
[1738261243304,0.61118,3272.2,3272.1,0.61117]
[1738261243799,0.50497861,3272.6,3272.0,3.15723929]
[1738261244606,0.61116,3272.3,3272.2,0.61116]
[1738261246411,0.61113,3272.5,3272.4,0.61112]
[1738261247802,0.61114,3272.4,3272.3,1.11114]
[1738261248007,0.50497861,3272.6,3272.2,2.60541196]
[1738261248211,0.61123,3271.9,3271.6,0.61128]
[1738261248504,0.6113,3271.5,3271.4,1.14111]
[1738261248912,3.2078,3271.7,3271.4,0.5298]
[1738261249413,3.81908,3271.7,3271.6,0.61128]
[1738261249613,0.6113,3271.6,3271.5,0.61129]
[1738261250619,0.61128,3271.7,3271.6,0.61127]
[1738261250917,0.61126,3271.8,3271.7,0.61125]
[1738261251116,3.2078,3272.1,3271.5,2.60541196]
[1738261251310,3.2078,3272.1,3271.8,3.21664196]
[1738261251311,0.61124,3271.9,3271.8,3.21664196]
[1738261251807,0.61124,3271.9,3271.8,2.60541196]
[1738261252014,3.2078,3272.1,3271.4,1.14111]
[1738261252215,0.6113,3271.5,3271.4,1.14111]
[1738261253316,0.6113,3271.5,3271.4,0.61131]
[1738261253918,0.61129,3271.6,3271.5,0.61129]
[1738261254420,0.61132,3271.5,3271.4,0.6113]
[1738261255918,1.52808,3271.9,3271.3,3.2078]
[1738261256120,0.61129,3271.6,3271.5,0.61129]
[1738261256316,0.61129,3271.6,3271.3,3.2078]
[1738261256517,0.61129,3271.6,3271.5,0.6113]
[1738261259315,1.52808,3271.9,3271.8,0.61122]
[1738261259316,0.61125,3271.9,3271.8,0.61122]
[1738261259519,3.2078,3272.1,3272.0,0.61121]
[1738261260227,0.61118,3272.2,3272.1,0.61119]
[1738261260517,3.21237861,3272.6,3272.1,2.60541196]
[1738261260716,3.21237861,3272.6,3272.5,0.61112]
[1738261261120,3.82347861,3272.6,3272.5,0.61112]
[1738261261321,3.21237861,3272.6,3272.5,0.61112]
[1738261263226,0.00457861,3272.6,3272.5,0.61112]
[1738261263424,3.2078,3273.7,3272.4,2.60541196]
[1738261263724,2.60541196,3274.1,3273.6,2.60541196]
[1738261263725,3.2078,3274.1,3273.6,2.60541196]
[1738261263918,3.2078,3274.6,3273.9,2.60541196]
[1738261264120,0.61081,3274.2,3274.1,0.6108]
[1738261264427,0.61083,3274.1,3274.0,0.61082]
[1738261264618,3.2078,3274.2,3273.8,0.00457861]
[1738261264819,3.81861,3274.2,3274.0,0.61082]
[1738261265018,0.61082,3274.1,3274.0,0.61082]
[1738261265521,0.61086,3273.9,3273.8,0.00457861]
[1738261266625,0.61083,3274.1,3274.0,0.61083]
[1738261267020,0.61081,3274.2,3274.1,0.61082]
[1738261267328,0.61077,3274.4,3274.2,0.61079]
[1738261267921,0.00457861,3274.5,3273.8,3.21237861]
[1738261268326,0.61086,3273.9,3273.8,3.21237861]
[1738261268824,0.61086,3273.9,3273.8,0.00457861]
[1738261269724,7.917,3273.9,3272.6,3.15427213]
[1738261269922,0.61105,3272.9,3272.7,0.61107]
[1738261270118,0.611,3273.1,3272.6,3.15427213]
[1738261270323,3.2078,3273.2,3272.6,0.6111]
[1738261270522,3.2078,3273.2,3272.3,0.4995]
[1738261270723,0.61104,3273.0,3272.9,0.61105]
[1738261270920,0.61095,3273.5,3272.8,3.2078]
[1738261271124,0.61092,3273.7,3273.1,3.15427213]
[1738261271317,0.61086,3274.0,3273.8,0.61087]
[1738261271524,0.61087,3273.9,3273.8,0.61087]
[1738261271824,0.6109,3273.8,3273.6,0.61091]
[1738261273020,0.6109,3273.8,3273.7,0.6109]
[1738261273225,3.81868,3273.9,3273.8,0.61089]
[1738261273424,0.61089,3273.8,3273.7,0.6109]
[1738261273827,3.2078,3274.3,3273.4,3.15427213]
[1738261274026,0.61091,3273.7,3273.6,0.61092]
[1738261274227,0.61083,3274.1,3273.5,0.61093]
[1738261274420,1.52704,3274.2,3273.4,3.15427213]
[1738261274421,3.2078,3273.9,3273.4,3.15427213]
[1738261274618,0.61096,3273.5,3273.3,0.61096]
[1738261274829,3.2078,3273.9,3273.2,4.2501]
[1738261275230,0.61093,3273.6,3273.5,0.61094]
[1738261275627,0.61091,3273.7,3273.6,0.61091]
[1738261276328,3.2078,3273.9,3273.8,0.61089]
[1738261277427,0.61086,3274.0,3273.9,0.61087]
[1738261278139,3.2078,3274.3,3273.6,3.2078]
[1738261278435,3.2078,3274.3,3274.2,0.61081]
[1738261278729,3.2078,3274.3,3273.8,3.15427213]
[1738261278940,0.61082,3274.2,3274.1,0.61082]
[1738261279734,3.8186,3274.3,3274.2,0.61081]
[1738261279936,3.8186,3274.3,3273.9,0.4929]
[1738261279937,3.2078,3274.3,3274.0,0.513]
[1738261280232,0.61083,3274.1,3274.0,0.513]
[1738261280628,0.61083,3274.1,3274.0,1.12385]
[1738261280825,0.61083,3274.1,3274.0,0.513]
[1738261281130,0.61083,3274.1,3274.0,1.12385]
[1738261281431,3.2078,3274.3,3274.2,0.61081]
[1738261281942,3.81859,3274.3,3274.2,0.61081]
[1738261282235,3.2078,3274.3,3274.2,0.61081]
[1738261283229,0.61078,3274.4,3274.3,0.61079]
[1738261283436,0.00457861,3274.5,3274.4,0.61077]
[1738261284340,0.00457861,3274.5,3274.0,0.51757861]
[1738261284535,0.61083,3274.1,3274.0,1.12841861]
[1738261285037,0.61083,3274.1,3274.0,0.00457861]
[1738261285649,0.61083,3274.1,3274.0,0.61542861]
[1738261285836,3.2078,3274.3,3274.0,0.00457861]
[1738261286027,0.00457861,3274.5,3274.4,0.61077]
[1738261292641,0.00457861,3274.5,3274.4,3.21247793]
[1738261295048,0.61084,3274.4,3274.3,0.61083]
[1738261295241,3.81864,3274.4,3274.3,0.61083]
[1738261297051,3.81864,3274.4,3274.1,4.11280793]
[1738261297052,0.61086,3274.2,3274.1,3.58940793]
[1738261297240,0.61086,3274.2,3274.0,0.00457861]
[1738261297241,0.61088,3274.1,3274.0,0.61546861]
[1738261298449,3.2078,3274.4,3274.0,0.00457861]
[1738261298646,0.00457861,3274.5,3274.2,3.2078]
[1738261298851,0.00457861,3274.5,3274.4,3.21252793]
[1738261299450,0.61082,3274.4,3274.3,1.66343]
[1738261299643,3.81862,3274.4,3274.3,0.61083]
[1738261299845,0.61082,3274.4,3274.3,0.61083]
[1738261300246,0.00457861,3274.5,3274.1,2.60170793]
[1738261300550,0.00457861,3274.5,3274.4,0.61082]
[1738261300741,0.00457861,3274.5,3274.4,3.21252793]
[1738261301651,0.61537861,3274.5,3274.4,3.21252793]
[1738261301843,0.61537861,3274.5,3274.4,0.61082]
[1738261302043,0.00457861,3274.5,3274.1,2.60170793]
[1738261302244,0.61085,3274.4,3274.3,0.61083]
[1738261302548,0.00457861,3274.5,3274.1,2.60170793]
[1738261302749,0.00457861,3274.5,3274.3,0.61082]
[1738261302750,0.61084,3274.4,3274.3,0.61082]
[1738261302948,0.61538861,3274.5,3274.4,0.61082]
[1738261303852,0.00457861,3274.5,3274.0,0.00457861]
[1738261304144,0.61086,3274.3,3274.2,0.61084]
[1738261304544,0.61086,3274.3,3274.0,0.00457861]
[1738261304545,3.21237861,3274.5,3274.0,0.00457861]
[1738261304945,0.61088,3274.1,3274.0,0.61545861]
[1738261307655,0.61088,3274.1,3274.0,0.00457861]
[1738261308056,0.61088,3274.1,3274.0,0.61547861]
[1738261309254,3.21237861,3274.5,3274.0,0.00457861]
[1738261309456,3.21237861,3274.5,3274.4,0.61082]
[1738261310454,3.21237861,3274.5,3274.4,1.10492]
[1738261311558,3.82317861,3274.5,3274.4,1.10492]
[1738261311857,3.21237861,3274.5,3274.2,2.60170793]
[1738261312054,3.21237861,3274.5,3274.0,0.49867861]
[1738261312253,0.61088,3274.2,3274.1,0.61086]
[1738261312454,0.61088,3274.1,3274.0,0.00457861]
[1738261312662,3.81868,3274.1,3274.0,0.00457861]
[1738261314060,3.81868,3274.1,3274.0,0.00343072]
[1738261318359,1.036,3274.4,3274.0,0.00343072]
[1738261318563,1.64684,3274.4,3274.3,0.61084]
[1738261319064,0.61084,3274.4,3274.3,0.61084]
[1738261319458,0.61084,3274.3,3274.2,3.21253793]
[1738261320059,0.61084,3274.3,3274.2,0.61083]
[1738261324473,0.00457861,3274.5,3274.0,0.00343072]
[1738261324670,0.61088,3274.1,3274.0,0.00343072]
[1738261324969,0.61088,3274.1,3274.0,0.61433072]
[1738261325966,0.00457861,3274.5,3274.4,0.61082]
[1738261326467,0.00457861,3274.5,3274.4,1.12262]
[1738261328168,0.61537861,3274.5,3274.4,0.5118]
[1738261328370,0.61084,3274.3,3274.2,0.5278]
[1738261328666,0.61088,3274.2,3274.1,0.61086]
[1738261331272,3.2078,3274.3,3274.0,0.00343072]
[1738261331572,3.05467,3273.9,3272.3,3.2078]
[1738261331774,0.981,3274.2,3272.5,0.61117]
[1738261331775,0.6111,3272.9,3272.5,0.61117]
[1738261331970,3.2078,3272.6,3272.3,1.4896]
[1738261332371,0.61118,3272.5,3272.4,0.6112]
[1738261333475,0.61095,3273.8,3273.7,0.61095]
[1738261333771,2.51213,3274.3,3273.5,2.60170793]
[1738261333772,0.985,3274.3,3273.5,2.60170793]
[1738261333974,0.61096,3273.7,3273.6,1.12136]
[1738261334377,0.61096,3273.7,3273.6,0.5104]
[1738261334580,3.2078,3274.0,3273.1,3.21276793]
[1738261334581,1.5273,3273.9,3273.1,3.21276793]
[1738261334779,0.61105,3273.2,3273.1,3.21276793]
[1738261335575,0.61106,3273.1,3273.0,0.5104]
[1738261335777,0.61106,3273.1,3273.0,1.12148]
[1738261336168,3.2078,3273.5,3273.0,1.12148]
[1738261336169,0.61103,3273.3,3273.2,0.61103]
[1738261336373,0.61098,3273.6,3273.5,0.61097]